Cogmind - Beta 13 @@@ ROGUE MODE // 2024.04.12 @ 00:18:16 Player: MTF Result: Destroyed by D-53 Grenadier with Mini Grenade Launcher Performance ------------- Evolutions (0) 0 Regions Visited (2) 400 Robots Destroyed (36) 180 Value Destroyed (634) 634 Prototype IDs (0) 0 Alien Tech Used (0) 0 Bonus (-938) -938 TOTAL SCORE: 276 Bonus ------- Friendly Fire -938 Cogmind --------- Core Integrity 0/250 Matter 233/300 Energy 100/100 System Corruption 1% Temperature Cool (20) Movement Treading (240) Ox1 Location -10/Mines Parts ------- > --- POWER (1) -------- (None) > --- PROPULSION (2) --- Light Treads Light Treads > --- UTILITY (2) ------ High-capacity Storage Unit Structural Scanner > --- WEAPON (2) ------- Improved Grenade Launcher Missile Launcher > --- INVENTORY (20) --- Light Nuclear Core Light Treads Light Treads Light Treads Aluminum Leg Aluminum Leg Signal Interpreter Hacking Suite Hacking Suite Assault Rifle Light Assault Rifle Light Assault Rifle Shock Bomb Launcher Shock Bomb Launcher Grenade Launcher Rocket Launcher Mining Laser Peak State ------------ > --- POWER ------------ Light Ion Engine > --- PROPULSION ------- Light Treads Light Treads > --- UTILITY ---------- High-capacity Storage Unit Structural Scanner > --- WEAPON ----------- Improved Grenade Launcher Missile Launcher > --- INVENTORY -------- Light Nuclear Core Light Treads Light Treads Light Treads Aluminum Leg Aluminum Leg Signal Interpreter Hacking Suite Hacking Suite Assault Rifle Light Assault Rifle Light Assault Rifle Shock Bomb Launcher Shock Bomb Launcher Grenade Launcher Rocket Launcher Mining Laser [Rating: 13] Favorites ----------- Power Light Ion Engine Engine Light Ion Engine Propulsion Light Treads Treads Light Treads Leg Aluminum Leg Utility High-capacity Storage Unit Device Structural Scanner Storage High-capacity Storage Unit Weapon Assault Rifle Energy Gun EM Pulse Gun Ballistic Gun Assault Rifle Launcher Missile Launcher Special Weapon Mining Laser Build | -11 -10 -10 ------- Run | Yrd Mat Min Slots Evolved . | . . . Power . | . . . Propulsion . | . . . Utility . | . . . Weapon . | . . . Parts Attached 18 | 4 8 6 Power 1 | . 1 . Engine 1 | . 1 . Core . | . . . Reactor . | . . . Propulsion 3 | 2 . 1 Treads 3 | 2 . 1 Leg . | . . . Wheel . | . . . Hover . | . . . Flight . | . . . Utility 5 | 2 3 . Device 4 | 2 2 . Storage 1 | . 1 . Processor . | . . . Hackware . | . . . Protection . | . . . Artifact . | . . . Weapon 9 | . 4 5 Energy Gun 1 | . 1 . Energy Cannon . | . . . Ballistic Gun 4 | . 2 2 Ballistic Cannon . | . . . Launcher 2 | . . 2 Special Weapon 2 | . 1 1 Impact Weapon . | . . . Slashing Weapon . | . . . Piercing Weapon . | . . . Special Melee Weapon . | . . . Unidentified Prototypes . | . . . Parts Lost 6 | . 3 3 Power 2 | . 1 1 Propulsion 1 | . . 1 Utility 1 | . 1 . Weapon 2 | . 1 1 Highest Loss Streak 2 | . 1 2 To Critical Strikes . | . . . Average Slot Usage (%) 100 | . 100 100 Engine 14 | . 14 14 Treads 28 | . 28 28 Device 14 | . 14 14 Storage 14 | . 14 14 Energy Gun 4 | . 4 4 Ballistic Gun 23 | . 23 22 Naked Turns . | . . . Heaviest Build 48 | 12 48 48 Greatest Support 40 | 40 40 40 Greatest Overweight (x) 1 | . 1 1 Average Overweight (x) . | . . 1 Largest Inventory Capacity 20 | 8 20 20 Average Capacity 16 | 8 17 20 Most Carried 17 | 6 11 17 Average Carried 9 | 5 8 14 Final Capacity 20 | 8 20 20 Final Carried 17 | 5 11 17 Class Distribution -------------------- 100% | Mutant Dominant Class ---------------- Mutant | -10/Materials Mutant | -10/Mines Resources | -11 -10 -10 ----------- Run | Yrd Mat Min Matter Collected 713 | 335 301 77 Remotely . | . . . Salvage Created 1414 | 282 769 363 Parts 76 | 24 39 13 Haulers Intercepted . | . . . Recyclers Shooed 3 | . 3 . Parts Field Recycled . | . . . Retrieved Matter . | . . . Parts Self-Destructed . | . . . Prevented . | . . . Kills | -11 -10 -10 ------- Run | Yrd Mat Min Combat Hostiles Destroyed 16 | . 15 1 Guns 16 | . 15 1 Classes Destroyed 7 | 2 3 2 Worker 2 | . . 2 Builder 1 | . . 1 Tunneler 10 | 9 . 1 Recycler 5 | 1 2 2 Watcher 1 | . 1 . Swarmer 3 | . 3 . Grunt 13 | . 12 1 Best Kill Streak 5 | 5 3 4 Combat Bots Only 3 | . 3 1 Max Kills in Single Turn 2 | 1 2 2 Gunslinging . | . . . Exploded . | . . . Melee . | . . . Uniques/NPCs Destroyed 1 | . . 1 YI-UF0 (-10/Mines) Combat | -11 -10 -10 -------- Run | Yrd Mat Min Hostile Shots Fired 85 | . 66 19 Missed 16 | . 14 2 Damage Taken 1012 | . 571 441 Core 260 | . 98 162 Absorbed by Shields . | . . . Core Remaining (%) 100 | 100 . . Volleys Fired 91 | 27 46 18 Largest 2 | 2 2 2 Hottest 100 | 40 100 100 Shots Fired 180 | 54 91 35 Gun 174 | 54 90 30 Cannon . | . . . Launcher 4 | . . 4 Special 2 | . 1 1 Kinetic 146 | 54 75 17 Thermal 2 | . 1 1 Explosive 4 | . . 4 Electromagnetic 28 | . 15 13 Robot Hit Streak 16 | 12 16 11 Robot Miss Streak 3 | 3 3 2 Penetration Max . | . . . Secondary Targets 1 | . 1 . Max Gunslinging Chain 1 | . 1 . Shots Hit Robots 119 | 32 62 25 Core Hits 62 | 11 29 22 Critical Kills . | . . . Critical Parts Destroyed 1 | . 1 . Critical Strikes 1 | . 1 . Destroy 1 | . 1 . Melee Attacks . | . . . Impact . | . . . Slashing . | . . . Piercing . | . . . Sneak Attacks . | . . . Combat Hostiles . | . . . Follow-up Attacks . | . . . Damage Inflicted 1862 | 363 864 635 Guns 1490 | 363 853 274 Cannons . | . . . Explosions 361 | . . 361 Melee . | . . . Ramming 11 | . 11 . Kinetic 1203 | 363 706 134 Thermal 84 | . . 84 Explosive 277 | . . 277 Electromagnetic 287 | . 147 140 Impact . | . . . Slashing . | . . . Piercing . | . . . Highest Corruption 1 | . 1 1 Average Corruption 1 | . 1 1 Corruption Purged . | . . . Corruption Blocked . | . . . Effects 10 | . 6 4 Message Errors 4 | . 2 2 Matter Fused 2 | . 2 . Heat Flow Errors 2 | . . 2 Parts Rejected 1 | . 1 . Data Loss (minor) 1 | . 1 . Overload Shots . | . . . Overflow Damage . | . . . Projectiles . | . . . Explosions . | . . . Melee . | . . . Knockbacks . | . . . Impact . | . . . Kinetic . | . . . Secondary . | . . . Self-Inflicted Damage 40 | . . 40 Shots 1 | . . 1 Rammed 6 | . 6 . Targets Rammed 6 | . 6 . Kicked . | . . . Crushed . | . . . Highest Temperature 278 | . 20 278 Average Temperature 42 | . 9 62 Received Heat Transfer 324 | . 243 81 Siege Activations . | . . . Robots Corrupted . | . . . Combat Hostiles . | . . . Parts Fried . | . . . Impact Corruptions . | . . . Robots Melted . | . . . Combat Hostiles . | . . . Parts Melted . | . . . Heat Transferred 100 | . . 100 Parts Sabotaged . | . . . Parts Stolen . | . . . Parts Stripped . | . . . Power Chain Reactions 1 | . . 1 Alert | -11 -10 -10 ------- Run | Yrd Mat Min Peak Influence 222 | 50 222 89 Initial 65 | . 32 65 Average 72 | 26 96 54 Maximum Alert Level 1 | . 1 . Low Security (%) 98 | 100 97 100 Level 1 1 | . 2 . Level 2 . | . . . Level 3 . | . . . Level 4 . | . . . Level 5 . | . . . High Security . | . . . Max Security . | . . . Squads Dispatched 6 | . 5 1 Investigation 4 | . 3 1 Extermination . | . . . Reinforcement 2 | . 2 . Assault . | . . . Garrison . | . . . Intercept . | . . . Searches Triggered . | . . . Construction Impeded . | . . . Haulers Reinforced . | . . . Active Scanning Responses . | . . . Cargo Convoy Interrupts . | . . . Stealth | -11 -10 -10 --------- Run | Yrd Mat Min Distress Signals 1 | . 1 . Communications Jammed . | . . . Distress Signals . | . . . Times Spotted 26 | . 22 4 Peak Tracking Total 4 | . 4 2 Tactical Retreats . | . . . Traps | -11 -10 -10 ------- Run | Yrd Mat Min Traps Triggered 2 | . 2 . Indirectly . | . . . Trap Hack Attempts . | . . . Triggered . | . . . Disarmed . | . . . Reprogrammed . | . . . Reused . | . . . Traps Extracted . | . . . Installed . | . . . Triggered . | . . . Machines | -11 -10 -10 ---------- Run | Yrd Mat Min Machines Disabled . | . . . Max in Single Turn . | . . . Machines Repaired . | . . . Machines Dismantled . | . . . Machines Sabotaged . | . . . Overloaded Fab Kills . | . . . Hacking | -11 -10 -10 --------- Run | Yrd Mat Min Machines Accessed 8 | . 7 1 Terminals 5 | . 5 . Fabricators . | . . . Repair Stations . | . . . Recycling Units 2 | . 2 . Scanalyzers . | . . . Garrison Access . | . . . Total Hacks 15 | . 14 1 Successful 6 | . 5 1 Failed 9 | . 9 . Catastrophic 3 | . 3 . Database Lockouts . | . . . Manual 10 | . 10 . Terminals 12 | . 12 . Fabricators . | . . . Repair Stations . | . . . Recycling Units 2 | . 2 . Scanalyzers . | . . . Garrison Access . | . . . Terminal Hacks 4 | . 3 1 Robot Analysis 1 | . 1 . Open Door 1 | . . 1 Locate Traps 1 | . 1 . Zone Layout 1 | . 1 . Fabricator Hacks . | . . . Repair Station Hacks . | . . . Recycling Unit Hacks . | . . . Scanalyzer . | . . . Garrison Access Hacks . | . . . Unauthorized Hacks 2 | . 2 . Terminals . | . . . Fabricators . | . . . Repair Stations . | . . . Recycling Units 2 | . 2 . Tunnel 2 | . 2 . Scanalyzers . | . . . Garrison Access . | . . . Data Cores Recovered . | . . . Used . | . . . Hacking Detections 5 | . 5 . Full Trace Events . | . . . Feedback Events . | . . . Feedback Blocked . | . . . Robot Schematics Acquired . | . . . Robots Built . | . . . Authchips . | . . . Time . | . . . Total Robot Build Rating . | . . . Part Schematics Acquired . | . . . Parts Built . | . . . Authchips . | . . . Time . | . . . Total Part Build Rating . | . . . Parts Repaired . | . . . Time . | . . . Parts Recycled . | . . . Recycled Matter . | . . . Retrieved Matter . | . . . Retrieved Components . | . . . Parts Scanalyzed . | . . . Part Schematics Acquired . | . . . Parts Damaged . | . . . Bothacking | -11 -10 -10 ------------ Run | Yrd Mat Min Used RIF Installer . | . . . Robots Hacked . | . . . Non-combat . | . . . Combat . | . . . Robot Hacks Applied . | . . . Relay Couplers Released . | . . . Fabnet Peak Effective % . | . . . Robots Rewired . | . . . Allies Hacked . | . . . Hacks Repelled . | . . . Allies | -11 -10 -10 -------- Run | Yrd Mat Min Total Allies . | . . . Largest Group . | . . . Highest-Rated Group . | . . . Highest-Rated Ally . | . . . Total Orders . | . . . Ally Attacks . | . . . Total Damage . | . . . Kills . | . . . Allies Corrupted . | . . . Allies Melted . | . . . Intel | -11 -10 -10 ------- Run | Yrd Mat Min Robot Analysis Total 1 | . 1 . Derelict Logs Recovered . | . . . Drone Launches . | . . . Drone Recoveries . | . . . Exploration | -11 -10 -10 ------------- Run | Yrd Mat Min Turns Passed 1811 | 258 962 591 Spaces Moved 604 | 41 348 215 Core . | . . . Treads 604 | 41 348 215 Legs . | . . . Wheels . | . . . Hover . | . . . Flight . | . . . Fastest Speed 160 | 160 160 240 Average Speed 217 | 160 210 240 Slowest Speed 240 | 160 240 240 Overloaded Moves . | . . . Propulsion Burnouts . | . . . Robots Hopped . | . . . Cave-ins Triggered . | . . . Exploration Rate (%) 42 | 4 75 47 Regions Visited 2 Branch Regions 1 Pre-discovered Areas 2 | . 2 . Known Exits Taken . | . . . Unknown Exits Taken 2 | 1 1 . Scrap Searched 1 | . . 1 Spaces Dug 2 | . 1 1 Terrain Destroyed 21 | . 1 20 Melee . | . . . Projectile 2 | . 1 1 AOE 19 | . . 19 Terrain Rammed . | . . . Walls Destroyed . | . . . Machines Disabled . | . . . Actions | -11 -10 -10 --------- Run | Yrd Mat Min Total 912 | 185 475 252 Wait 172 | 109 58 5 Move 602 | 40 347 215 Hop . | . . . Pick Up 18 | 1 9 8 Fast Attach 3 | 2 1 . Attach 5 | . 3 2 Detach 1 | 1 . . Swap 10 | 2 4 4 Drop 4 | 3 1 . Fire 91 | 27 46 18 Melee . | . . . Ram . | . . . Kick . | . . . Crush 6 | . 6 . Escape Stasis . | . . . Rewire . | . . . Trap . | . . . Miscellaneous . | . . . Route ------- -11/Scrapyard -10/Materials (discovered 2 exits: [*Mat] / *Min) -10/Mines (discovered 1 exit: [*Sub]) History --------- Turn | Location | Event 4 | -11/Scrapyard | Discovered new exit (range 2) 259 | -11/Scrapyard | Entered Materials 310 | -10/Materials | Build established: Mutant 453 | -10/Materials | Discovered new exit (range 12) 722 | -10/Materials | Discovered new exit (range 16) 1221 | -10/Materials | Entered Mines 1228 | -10/Mines | Received a Rocket Launcher from a helpful Derelict 1324 | -10/Mines | YI-UF0 nonchalantly dropped a Grenade Launcher on the ground 1338 | -10/Mines | Murdered YI-UF0 1338 | -10/Mines | Destroyed YI-UF0 1416 | -10/Mines | Core integrity fell below 50% 1476 | -10/Mines | Met a Derelict shopkeep closing up shop 1619 | -10/Mines | Discovered new exit (range 8) 1791 | -10/Mines | Assembled infested the area 1811 | -10/Mines | Core integrity fell below 20% 1812 | -10/Mines | Destroyed by D-53 Grenadier with Mini Grenade Launcher Last Messages --------------- 01619_ EXIT=FOUND 01620_ A derelict emerges from the shadows: "What are you doing alone down here?" 01622_ Q2-M9D(g): "Well, at least you look like you can take care of yourself!" 01624_ Q2-M9D(g): "I have the funny feeling that things are about to get a lot worse around here, see you around!" 01624_ Q2-M9D(g) slips back into the shadows. 01747_ System corrupted: Heat flow error (+184). 01749_ Acquired 20 matter. 01776_ System corrupted: Heat flow error (+298). 01791_ ALERT: Infestation in the mines, dispatching Demolisher response squad. 01804_ C-30 ARC bursts open, deploying its payload. 01804_ D-53 Grenadier unfolds itself. 01807_ U-05 Engineer destroyed. 01807_ R-06 Scavenger destroyed. 01810_ The unstable cave ceiling collapses. 01810_ T-07 Excavator destroyed. 01812_ Lgt. Ion Engine destroyed. Map ----- +----------------------------------------------------+ | ??????????##############????????##""""""##???????? | | ??????????## ##########???????## [ ! ##???????? | | ??????????## ######????### ###???????? | | ??????????### #####???#### ####??????? | | ??????????######### ##???##### #####??????? | | ???????????#######"# ### ##???## X ###?????? | | ??????????????## <####### ##???## ###?????? | | ??????????????########### ##???### ##?????? | | ??????????????#####????## ##???######## ##?????? | | ???????????????????????## ##????####### ###?????? | | ???????????????????????## ##????????### ###?????? | | ???????????????????????## ##???????#### ####????? | | ???????????????????????## #####???#### ####???? | | ???????????????????????## #####?##### ###???? | | ???????????????????????## ####### ##???? | | ???????????????????????##### ##### ##???? | | ???????????????????????##### #### ## ###???? | | ??????????????????????????## ##### ##########???? | | ????????????????#########?## #### #########????? | | ???????? ? ? ############### #### #########????? | | ?????##### # # ## ####### ## ##????? | | ????#######* ####### ## """ ##????? | | ????## ###### ## """ ##????? | | ????## % #### % """ ##????? | | ????## ??## %d ## %= ##????? | | ?????????## d! @ ## ##????? | | ????????### % #########????? | | ????????## #########????? | | ????????## ######????????? | | ????????### # ########?###???? | | ????????##### #### ### ########??? | | ?????????##### ######r ## ### ###??? | | ???????????### ####### ##??? | | ???????????## ### ##??### ##??? | | ??????????## #### ###??### #####??? | | ??????????### ###### ####?#### % % ########??? | | ??????????#######?#######??### #######???? | | ???????????#####???#####???## % #####??? | | ??????????????????????????### ###??? | | ?????????????????????????### ##### ##??? | | ????????????????????????### ####### # ####?? | | ????????????????????????## ####### ######?? | | ????????????????????????## #????## /##?? | | ????????????????????????## ##????## !%##?? | | ????????????????????????### #####????######! ##?? | | ????????????????????????#########?????###### ##?? | | ?????????????????????????#####????????????## ##?? | | ??????????????????????????????###?????????## ##?? | | ??????????????????????????????###????????### ###? | | ?????????????????????????????? #?????###### ###? | +----------------------------------------------------+ Best States ------------- Heat Dissipation 25 Energy Generation 10 Energy Capacity 125 Matter Stores 300 Matter Capacity 300 Sight Range 16 Terrain Scan Range 16 Terrain Scan Density 10 Evasion (%) 40 Recoil Reduction 2 Item Schematics ----------------- None Robot Schematics ------------------ None Fabricated ------------ Nothing Alien Tech Used ----------------- None Achievements -------------- None Challenges ------------ None Game ------ Seed ResetFlightAccelerator Manual? 0 Play Time 00:13:32 Cumulative 1538.4 hours Start 2024.04.12 @ 00:05:17 End 2024.04.12 @ 00:18:16 Sessions 1 Manual Loads 0 Difficulty Rogue Special Mode None Game No. 424 Rogue 424 Adventurer 0 Explorer 0 Win Type - Total 91 Types 14/18/18/3/1/2/31/2/2 Lore% 95 Gallery% 97 Achievement% 89 Wizard Run 0 Options --------- Layout 0 ASCII 0 Keyboard 0 Movement Numpad Keybinds 0 Fullscreen 2 Font 24/Smallcaps Map View 76x50 Zoom Use 0% Tactical HUD 1 Map Filters NONE Filters NONE Steam 1 RUN: c0f475cf-4901-459c-9e64-fb966354c635